[Event "EYCC Girls U16 2021"]
[Site "Tornelo"]
[Date "2021.10.15"]
[Round "1.9"]
[White "Chuchukova, Stefani"]
[Black "Batagan, Ilinca-Petra"]
[Result "0-1"]
[ECO "D00"]
[WhiteElo "1698"]
[BlackElo "1977"]
[Annotator "NA"]
[PlyCount "102"]
[EventDate "2021.10.15"]
[EventType "swiss"]
[EventCountry "NET"]
[SourceTitle "playchess.com"]
[Source "ChessBase"]
[SourceQuality "1"]
[TimeControl "5400+30"]

1. d4 {[%emt 0:00:30]} d5 {[%emt 0:00:37]} 2. Bg5 {[%emt 0:00:44]} Nf6 {[%emt 0:01:41]} 3. Bxf6 {[%emt 0:00:15]} gxf6 {[%emt 0:01:30]} 4. e3 {[%emt 0:01:31]} e6 {[%emt 0:04:01]} 5. Nf3 {[%emt 0:02:55]} c5 {[%emt 0:00:39]} 6. c3 {[%emt 0:01:35]} Nc6 {[%emt 0:00:50]} 7. Nbd2 {[%emt 0:01:53]} Bd6 {[%emt 0:02:43]} 8. Bd3 {[%emt 0:04:11]} e5 {[%emt 0:05:14]} 9. e4 {[%emt 0:04:19]} cxd4 {[%emt 0:04:20]} 10. exd5 {[%emt 0:06:56]} Ne7 {[%emt 0:05:59]} 11. Qb3 {[%emt 0:04:30]} dxc3 {[%emt 0:02:23]} 12. Ne4 {[%emt 0:03:15]} f5 {[%emt 0:08:51]} 13. Bb5+ {[%emt 0:00:47]} Kf8 {[%emt 0:00:26]} 14. Nxc3 {[%emt 0:01:20]} a6 {[%emt 0:02:52]} 15. Be2 {[%emt 0:02:14]} Kg7 {[%emt 0:01:36]} 16. h4 {[%emt 0:02:03]} Re8 {[%emt 0:02:04]} 17. Ng5 {[%emt 0:07:06]} Ng6 {[%emt 0:02:31]} 18. g3 {[%emt 0:02:44]} b5 {[%emt 0:04:45]} 19. a3 {[%emt 0:00:42]} Rb8 {[%emt 0:02:54]} 20. Na2 {[%emt 0:02:00]} Qa5+ {[%emt 0:09:05]} 21. Kf1 {[%emt 0:01:09]} b4 {[%emt 0:07:44]} 22. a4 {[%emt 0:03:42]} Bb7 {[%emt 0:01:00]} 23. Rd1 {[%emt 0:00:58]} Rbc8 {[%emt 0:02:21]} 24. h5 {[%emt 0:04:38]} Ne7 {[%emt 0:00:22]} 25. Bc4 {[%emt 0:03:40]} Qc5 {[%emt 0:01:15]} 26. Rh4 {[%emt 0:01:16]} e4 {[%emt 0:01:29]} 27. Rc1 {[%emt 0:09:08]} Bxd5 {[%emt 0:00:18]} 28. Bxd5 {[%emt 0:00:18]} Qxd5 {[%emt 0:00:08]} 29. Qxd5 {[%emt 0:00:06]} Rxc1+ {[%emt 0:00:17]} 30. Nxc1 {[%emt 0:00:06]} Nxd5 {[%emt 0:00:05]} 31. Nb3 {[%emt 0:01:29]} Be7 {[%emt 0:01:57]} 32. Nxe4 {[%emt 0:03:52]} Bxh4 {[%emt 0:01:32]} 33. Nd6 {[%emt 0:00:14]} Be7 {[%emt 0:02:37]} 34. Nxe8+ {[%emt 0:01:10]} Kf8 {[%emt 0:00:05]} 35. Nd4 {[%emt 0:00:10]} f4 {[%emt 0:01:27]} 36. g4 {[%emt 0:00:11]} Kxe8 {[%emt 0:00:09]} 37. Ke2 {[%emt 0:00:10]} Bf6 {[%emt 0:00:27]} 38. Kd3 {[%emt 0:00:31]} Bxd4 {[%emt 0:01:02]} 39. Kxd4 {[%emt 0:00:06]} Nb6 {[%emt 0:00:50]} 40. b3 {[%emt 0:00:24]} a5 {[%emt 0:00:48]} 41. f3 {[%emt 0:00:16]} Kd7 {[%emt 0:00:27]} 42. Kc5 {[%emt 0:00:04]} Nxa4+ {[%emt 0:00:11]} 43. Kb5 {[%emt 0:00:03]} Nb2 {[%emt 0:00:24]} 44. Kxa5 {[%emt 0:00:04]} Nd3 {[%emt 0:00:04]} 45. Kb5 {[%emt 0:00:03]} Ne1 {[%emt 0:00:33]} 46. Kxb4 {[%emt 0:00:05]} Nxf3 {[%emt 0:00:03]} 47. Kc3 {[%emt 0:00:09]} Ke6 {[%emt 0:01:04]} 48. Kd3 {[%emt 0:00:06]} Ke5 {[%emt 0:00:37]} 49. b4 {[%emt 0:00:06]} Nd4 {[%emt 0:00:04]} 50. Kd2 {[%emt 0:00:14]} Ke4 {[%emt 0:00:11]} 51. g5 {[%emt 0:00:04]} Kf5 {[%emt 0:00:05]} 0-1

[Event "EYCC Girls U16 2021"]
[Site "Tornelo"]
[Date "2021.10.15"]
[Round "1.10"]
[White "Tokmakova, Ulyana"]
[Black "Carevic, Milica"]
[Result "0-1"]
[ECO "A27"]
[WhiteElo "1977"]
[BlackElo "1675"]
[Annotator "NA"]
[PlyCount "84"]
[EventDate "2021.10.15"]
[EventType "swiss"]
[EventCountry "NET"]
[SourceTitle "playchess.com"]
[Source "ChessBase"]
[SourceQuality "1"]
[TimeControl "5400+30"]

1. c4 {[%emt 0:00:30]} e5 {[%emt 0:00:49]} 2. Nc3 {[%emt 0:00:07]} Nc6 {[%emt 0:00:06]} 3. Nf3 {[%emt 0:00:07]} f5 {[%emt 0:00:18]} 4. d3 {[%emt 0:02:29]} Bb4 {[%emt 0:03:27]} 5. Bd2 {[%emt 0:04:01]} Nf6 {[%emt 0:07:17]} 6. a3 {[%emt 0:02:55]} Bxc3 {[%emt 0:02:20]} 7. Bxc3 {[%emt 0:00:44]} d6 {[%emt 0:02:33]} 8. e3 {[%emt 0:05:57]} O-O {[%emt 0:07:13]} 9. Qb3 {[%emt 0:05:49]} Kh8 {[%emt 0:03:24]} 10. Be2 {[%emt 0:04:16]} Qe8 {[%emt 0:05:12]} 11. Qc2 {[%emt 0:03:28]} Bd7 {[%emt 0:05:02]} 12. b4 {[%emt 0:03:15]} a6 {[%emt 0:07:12]} 13. O-O {[%emt 0:03:09]} Qg6 {[%emt 0:05:54]} 14. a4 {[%emt 0:06:51]} Ne7 {[%emt 0:08:55]} 15. Rfb1 {[%emt 0:06:10]} b6 {[%emt 0:05:56]} 16. Bd2 {[%emt 0:05:44]} Rfc8 {[%emt 0:06:44]} 17. c5 {[%emt 0:09:18]} b5 {[%emt 0:06:35]} 18. a5 {[%emt 0:03:56]} Bc6 {[%emt 0:03:41]} 19. Ne1 {[%emt 0:07:38]} h6 {[%emt 0:07:38]} 20. Bf3 {[%emt 0:02:02]} e4 {[%emt 0:00:48]} 21. Be2 {[%emt 0:01:40]} exd3 {[%emt 0:01:11]} 22. Bxd3 {[%emt 0:00:43]} Ne4 {[%emt 0:00:21]} 23. cxd6 {[%emt 0:04:19]} Qxd6 {[%emt 0:02:17]} 24. Rd1 {[%emt 0:03:34]} Nxd2 {[%emt 0:01:14]} 25. Qxd2 {[%emt 0:00:20]} Rd8 {[%emt 0:02:19]} 26. Qb2 {[%emt 0:00:31]} Qe6 {[%emt 0:00:46]} 27. Bf1 {[%emt 0:02:20]} Bd5 {[%emt 0:00:38]} 28. Rac1 {[%emt 0:01:15]} c6 {[%emt 0:00:14]} 29. Nd3 {[%emt 0:01:51]} Ng6 {[%emt 0:01:02]} 30. Nc5 {[%emt 0:03:14]} Qe7 {[%emt 0:00:39]} 31. Bd3 {[%emt 0:01:31]} Qg5 {[%emt 0:00:42]} 32. Bf1 {[%emt 0:04:34]} Nh4 {[%emt 0:00:52]} 33. f4 {[%emt 0:00:09]} Nf3+ {[%emt 0:01:43]} 34. Kh1 {[%emt 0:01:14]} Qh5 {[%emt 0:00:02]} 35. h3 {[%emt 0:01:11]} Nh4 {[%emt 0:01:10]} 36. Qf2 {[%emt 0:00:47]} Bxg2+ {[%emt 0:01:08]} 37. Bxg2 {[%emt 0:00:17]} Rxd1+ {[%emt 0:00:04]} 38. Rxd1 {[%emt 0:00:03]} Qxd1+ {[%emt 0:00:03]} 39. Kh2 {[%emt 0:00:02]} Nxg2 {[%emt 0:00:06]} 40. Qxg2 {[%emt 0:00:05]} Rd8 {[%emt 0:00:26]} 41. Qxc6 {[%emt 0:01:04]} Rd2+ {[%emt 0:00:26]} 42. Kg3 {[%emt 0:00:03]} Qe1+ {[%emt 0:00:09]} 0-1

[Event "EYCC Girls U16 2021"]
[Site "Tornelo"]
[Date "2021.10.15"]
[Round "1.11"]
[White "Egger, Stefanie"]
[Black "Doll, Rebecca"]
[Result "1/2-1/2"]
[ECO "E14"]
[WhiteElo "1627"]
[BlackElo "1970"]
[Annotator "NA"]
[PlyCount "159"]
[EventDate "2021.10.15"]
[EventType "swiss"]
[EventCountry "NET"]
[SourceTitle "playchess.com"]
[Source "ChessBase"]
[SourceQuality "1"]
[TimeControl "5400+30"]

1. d4 {[%emt 0:00:30]} d5 {[%emt 0:00:43]} 2. c4 {[%emt 0:00:22]} e6 {[%emt 0:00:09]} 3. Nc3 {[%emt 0:00:24]} Nf6 {[%emt 0:00:31]} 4. Nf3 {[%emt 0:00:52]} Be7 {[%emt 0:00:25]} 5. e3 {[%emt 0:00:17]} O-O {[%emt 0:00:31]} 6. Bd3 {[%emt 0:00:22]} b6 {[%emt 0:01:05]} 7. O-O {[%emt 0:03:51]} Bb7 {[%emt 0:01:23]} 8. b3 {[%emt 0:02:31]} Nbd7 $11 {[%emt 0:01:24]} 9. Bb2 {[%emt 0:07:39]} c5 {[%emt 0:02:48]} 10. cxd5 {[%emt 0:08:24]} exd5 {[%emt 0:01:13]} 11. Rc1 {[%emt 0:03:06]} a6 {[%emt 0:05:27]} 12. a4 {[%emt 0:05:36]} Re8 {[%emt 0:01:48]} 13. Re1 {[%emt 0:06:55]} Bd6 {[%emt 0:10:15]} 14. Ne2 {[%emt 0:03:00]} Rc8 {[%emt 0:08:10]} 15. Ng3 {[%emt 0:02:27]} g6 {[%emt 0:07:43]} 16. Qe2 {[%emt 0:01:50]} Ra8 {[%emt 0:08:58]} 17. Qc2 {[%emt 0:12:09]} Ne4 {[%emt 0:03:24]} 18. dxc5 {[%emt 0:13:04]} Nexc5 {[%emt 0:08:04]} 19. Qc3 {[%emt 0:04:30]} Ne5 {[%emt 0:00:51]} 20. Be2 {[%emt 0:01:34]} Rc8 {[%emt 0:02:24]} 21. Rcd1 {[%emt 0:10:43]} Nxa4 {[%emt 0:14:27]} 22. Qd2 {[%emt 0:02:54]} Nc5 {[%emt 0:04:48]} 23. Nd4 {[%emt 0:00:39]} h5 {[%emt 0:03:53]} 24. b4 {[%emt 0:01:45]} Ncd7 {[%emt 0:01:24]} 25. h3 {[%emt 0:02:12]} h4 {[%emt 0:00:28]} 26. Nf1 {[%emt 0:01:03]} Nf6 {[%emt 0:00:36]} 27. Bd3 {[%emt 0:00:45]} Nxd3 {[%emt 0:01:27]} 28. Qxd3 {[%emt 0:00:09]} Bxb4 {[%emt 0:00:42]} 29. Re2 {[%emt 0:00:11]} Ne4 {[%emt 0:01:23]} 30. Rc2 {[%emt 0:01:38]} Qd7 {[%emt 0:01:10]} 31. Rdc1 {[%emt 0:02:02]} Rxc2 {[%emt 0:01:20]} 32. Nxc2 {[%emt 0:00:22]} Bc5 {[%emt 0:01:33]} 33. Nd2 {[%emt 0:00:30]} Nxd2 {[%emt 0:02:49]} 34. Qxd2 {[%emt 0:00:19]} Kh7 {[%emt 0:00:54]} 35. Nb4 {[%emt 0:01:41]} a5 {[%emt 0:01:10]} 36. Qc3 {[%emt 0:01:00]} f5 {[%emt 0:00:47]} 37. Nd3 {[%emt 0:00:16]} Bd6 {[%emt 0:00:38]} 38. Qf6 {[%emt 0:00:36]} Qe7 {[%emt 0:00:13]} 39. Qd4 {[%emt 0:00:29]} b5 {[%emt 0:00:56]} 40. Nf4 {[%emt 0:00:26]} Be5 {[%emt 0:01:18]} 41. Qxe5 {[%emt 0:01:02]} Qxe5 {[%emt 0:00:28]} 42. Bxe5 {[%emt 0:00:04]} Rxe5 {[%emt 0:00:37]} 43. Rc7+ {[%emt 0:00:06]} Kh6 {[%emt 0:00:10]} 44. Rxb7 {[%emt 0:00:04]} b4 {[%emt 0:00:39]} 45. Rb5 {[%emt 0:01:04]} Re4 {[%emt 0:00:48]} 46. Rxa5 {[%emt 0:00:40]} d4 {[%emt 0:00:20]} 47. Nd3 {[%emt 0:00:21]} dxe3 {[%emt 0:00:28]} 48. fxe3 {[%emt 0:00:08]} Rxe3 {[%emt 0:00:28]} 49. Nxb4 {[%emt 0:00:07]} Rb3 {[%emt 0:00:23]} 50. Nd5 {[%emt 0:00:30]} Rd3 {[%emt 0:00:45]} 51. Kf2 {[%emt 0:00:31]} Kg5 {[%emt 0:00:29]} 52. Ne3 {[%emt 0:00:55]} Rd2+ {[%emt 0:00:24]} 53. Kf3 {[%emt 0:00:09]} Rd3 {[%emt 0:00:16]} 54. Rd5 {[%emt 0:00:13]} Rb3 {[%emt 0:00:21]} 55. Rd6 {[%emt 0:01:12]} Kh5 {[%emt 0:00:44]} 56. Kf2 {[%emt 0:00:55]} Rb2+ {[%emt 0:00:12]} 57. Kf3 {[%emt 0:00:29]} Rb3 {[%emt 0:00:07]} 58. Rd2 {[%emt 0:00:59]} Kg5 {[%emt 0:00:28]} 59. Kf2 {[%emt 0:00:26]} Kf4 {[%emt 0:01:02]} 60. Re2 {[%emt 0:00:18]} Kg5 {[%emt 0:00:31]} 61. Nf1 {[%emt 0:01:07]} Kh5 {[%emt 0:01:08]} 62. Nd2 {[%emt 0:00:14]} Ra3 {[%emt 0:00:47]} 63. Re3 {[%emt 0:00:37]} Ra2 {[%emt 0:00:09]} 64. Ke2 {[%emt 0:00:11]} g5 {[%emt 0:00:39]} 65. Rd3 {[%emt 0:00:13]} g4 {[%emt 0:00:19]} 66. Ke3 {[%emt 0:00:55]} Kg5 {[%emt 0:00:36]} 67. Rd5 {[%emt 0:00:32]} Ra3+ {[%emt 0:00:18]} 68. Rd3 {[%emt 0:00:45]} f4+ {[%emt 0:00:42]} 69. Ke4 {[%emt 0:00:34]} Ra4+ {[%emt 0:00:47]} 70. Rd4 {[%emt 0:00:20]} Rxd4+ {[%emt 0:00:16]} 71. Kxd4 {[%emt 0:00:09]} f3 {[%emt 0:00:24]} 72. gxf3 {[%emt 0:00:53]} gxh3 {[%emt 0:00:37]} 73. Ne4+ {[%emt 0:00:41]} Kf4 {[%emt 0:00:21]} 74. Nf2 {[%emt 0:00:10]} h2 {[%emt 0:00:18]} 75. Nh1 {[%emt 0:00:30]} Kxf3 {[%emt 0:00:08]} 76. Kd3 {[%emt 0:00:11]} Kg2 {[%emt 0:00:25]} 77. Ke2 {[%emt 0:00:10]} Kg1 {[%emt 0:00:25]} 78. Ke1 {[%emt 0:00:15]} h3 {[%emt 0:00:36]} 79. Ke2 {[%emt 0:00:15]} Kxh1 {[%emt 0:00:13]} 80. Kf1 {[%emt 0:00:04]} 1/2-1/2

[Event "EYCC Girls U16 2021"]
[Site "Tornelo"]
[Date "2021.10.15"]
[Round "1.12"]
[White "Dietz, Kristin"]
[Black "Zusman, Tal"]
[Result "1-0"]
[ECO "B15"]
[WhiteElo "1924"]
[BlackElo "1626"]
[Annotator "NA"]
[PlyCount "91"]
[EventDate "2021.10.15"]
[EventType "swiss"]
[EventCountry "NET"]
[SourceTitle "playchess.com"]
[Source "ChessBase"]
[SourceQuality "1"]
[TimeControl "5400+30"]

1. e4 {[%emt 0:00:30]} c6 {[%emt 0:01:06]} 2. d4 {[%emt 0:00:16]} d5 {[%emt 0:00:20]} 3. Nd2 {[%emt 0:00:34]} dxe4 {[%emt 0:00:25]} 4. Nxe4 {[%emt 0:00:14]} Nf6 {[%emt 0:00:46]} 5. Nxf6+ {[%emt 0:00:23]} exf6 {[%emt 0:00:08]} 6. c3 {[%emt 0:00:22]} Bd6 {[%emt 0:00:08]} 7. Bd3 {[%emt 0:00:36]} O-O {[%emt 0:00:13]} 8. Qc2 {[%emt 0:00:38]} Re8+ {[%emt 0:00:39]} 9. Ne2 {[%emt 0:00:14]} h5 {[%emt 0:00:37]} 10. O-O {[%emt 0:01:09]} h4 {[%emt 0:00:28]} 11. h3 {[%emt 0:01:37]} Nd7 {[%emt 0:00:38]} 12. Bf4 {[%emt 0:04:20]} Nf8 {[%emt 0:03:25]} 13. Bxd6 {[%emt 0:03:51]} Qxd6 {[%emt 0:01:37]} 14. Rfe1 {[%emt 0:12:35]} Bd7 {[%emt 0:08:55]} 15. Rad1 {[%emt 0:08:15]} Re7 {[%emt 0:06:30]} 16. Nc1 {[%emt 0:03:58]} Rae8 {[%emt 0:14:57]} 17. Rxe7 {[%emt 0:01:51]} Rxe7 {[%emt 0:00:05]} 18. Nb3 {[%emt 0:02:28]} Ne6 {[%emt 0:12:15]} 19. c4 {[%emt 0:08:41]} Kh8 {[%emt 0:07:16]} 20. Bf5 {[%emt 0:16:21]} g6 {[%emt 0:06:59]} 21. d5 {[%emt 0:07:56]} Nf4 {[%emt 0:10:36]} 22. c5 {[%emt 0:04:35]} Qe5 {[%emt 0:03:56]} 23. d6 {[%emt 0:03:07]} Bxf5 {[%emt 0:15:13]} 24. dxe7 {[%emt 0:01:17]} Qxe7 {[%emt 0:00:09]} 25. Qd2 {[%emt 0:00:45]} Nd3 {[%emt 0:00:19]} 26. Nd4 {[%emt 0:02:40]} Be4 {[%emt 0:01:26]} 27. f3 {[%emt 0:02:40]} Qxc5 {[%emt 0:00:12]} 28. fxe4 {[%emt 0:02:57]} Qxd4+ {[%emt 0:00:02]} 29. Kf1 {[%emt 0:00:08]} Qxe4 {[%emt 0:02:02]} 30. Qxd3 {[%emt 0:00:12]} Qf4+ {[%emt 0:00:11]} 31. Kg1 {[%emt 0:00:37]} Kg7 {[%emt 0:00:20]} 32. Qd4 {[%emt 0:02:00]} Qb8 {[%emt 0:00:46]} 33. Rf1 {[%emt 0:00:24]} Qe8 {[%emt 0:01:20]} 34. Rxf6 {[%emt 0:00:43]} Kg8 {[%emt 0:00:56]} 35. Qxh4 {[%emt 0:00:14]} Qe3+ {[%emt 0:00:15]} 36. Qf2 {[%emt 0:00:07]} Qc1+ {[%emt 0:00:23]} 37. Kh2 {[%emt 0:00:11]} Qc4 {[%emt 0:00:14]} 38. Qxa7 {[%emt 0:00:33]} b5 {[%emt 0:00:06]} 39. Qa8+ {[%emt 0:00:39]} Kg7 {[%emt 0:00:02]} 40. Qxc6 {[%emt 0:00:08]} Qxa2 {[%emt 0:00:47]} 41. Rf2 {[%emt 0:00:52]} b4 {[%emt 0:01:10]} 42. Qb6 {[%emt 0:00:51]} Qb3 {[%emt 0:00:24]} 43. Rf4 {[%emt 0:00:42]} Qxb2 {[%emt 0:01:07]} 44. Qd4+ {[%emt 0:00:10]} Qxd4 {[%emt 0:00:05]} 45. Rxd4 {[%emt 0:00:07]} b3 {[%emt 0:00:41]} 46. Rb4 {[%emt 0:00:08]} 1-0

[Event "EYCC Girls U16 2021"]
[Site "Tornelo"]
[Date "2021.10.15"]
[Round "2.1"]
[White "Yue, Qizhou"]
[Black "Kanyamarala, Trisha"]
[Result "0-1"]
[ECO "B55"]
[WhiteElo "1842"]
[BlackElo "2082"]
[Annotator "ChessBase"]
[PlyCount "102"]
[EventDate "2021.10.15"]
[EventType "swiss"]
[EventCountry "NET"]
[SourceTitle "playchess.com"]
[Source "ChessBase"]
[SourceQuality "1"]
[TimeControl "5400+30"]

1. e4 {[%emt 0:00:30]} c5 {[%emt 0:00:43]} 2. Nf3 {[%emt 0:00:12]} d6 {[%emt 0:01:00]} 3. d4 {[%emt 0:00:11]} cxd4 {[%emt 0:00:33]} 4. Nxd4 {[%emt 0:00:09]} Nf6 {[%emt 0:00:18]} 5. f3 {[%emt 0:00:55]} Nc6 {[%emt 0:01:13]} 6. c4 {[%emt 0:09:06]} e6 {[%emt 0:00:30]} 7. Nc3 {[%emt 0:00:38]} a6 {[%emt 0:04:40]} 8. Be3 {[%emt 0:02:49]} d5 {[%emt 0:06:06]} 9. cxd5 {[%emt 0:00:43]} exd5 {[%emt 0:01:00]} 10. exd5 {[%emt 0:00:39]} Nxd5 {[%emt 0:19:24]} 11. Nxd5 {[%emt 0:00:49]} Qxd5 {[%emt 0:00:45]} 12. Nxc6 {[%emt 0:00:53]} Qxc6 {[%emt 0:02:00]} 13. Rc1 {[%emt 0:02:41]} Qe6 {[%emt 0:02:31]} 14. Kf2 {[%emt 0:07:12]} Be7 {[%emt 0:13:01]} 15. Bc4 {[%emt 0:03:16]} Qf5 {[%emt 0:01:46]} 16. Re1 {[%emt 0:14:39]} O-O {[%emt 0:01:50]} 17. Bd3 {[%emt 0:14:25]} Qe5 {[%emt 0:05:31]} 18. Kg1 {[%emt 0:11:23]} Qxb2 {[%emt 0:07:41]} 19. Rc7 {[%emt 0:03:17]} Bf6 {[%emt 0:05:38]} 20. Bc4 {[%emt 0:07:04]} Be6 {[%emt 0:07:45]} 21. Bxe6 {[%emt 0:01:46]} fxe6 {[%emt 0:00:10]} 22. Qb3 {[%emt 0:05:50]} Qxb3 {[%emt 0:01:59]} 23. axb3 {[%emt 0:00:07]} Rf7 {[%emt 0:01:42]} 24. Rec1 {[%emt 0:00:52]} Be5 {[%emt 0:03:14]} 25. Rc8+ {[%emt 0:01:23]} Rf8 {[%emt 0:02:58]} 26. Rxa8 {[%emt 0:03:46]} Rxa8 {[%emt 0:00:06]} 27. Rd1 {[%emt 0:00:24]} Rc8 {[%emt 0:00:41]} 28. f4 {[%emt 0:00:35]} Bf6 {[%emt 0:01:29]} 29. Rd3 {[%emt 0:01:26]} e5 {[%emt 0:00:57]} 30. fxe5 {[%emt 0:01:37]} Bxe5 {[%emt 0:00:08]} 31. Rd5 {[%emt 0:00:25]} Bf6 {[%emt 0:00:49]} 32. Rd3 {[%emt 0:01:30]} b5 {[%emt 0:00:35]} 33. Kf2 {[%emt 0:00:22]} Rc2+ {[%emt 0:00:50]} 34. Kf3 {[%emt 0:00:10]} a5 {[%emt 0:03:11]} 35. h3 {[%emt 0:01:58]} a4 {[%emt 0:00:55]} 36. bxa4 {[%emt 0:00:12]} bxa4 {[%emt 0:00:23]} 37. Ra3 {[%emt 0:00:56]} Rc4 {[%emt 0:00:19]} 38. Ke2 {[%emt 0:00:35]} Bb2 {[%emt 0:01:12]} 39. Kd3 {[%emt 0:00:45]} Rb4 {[%emt 0:00:59]} 40. Ra2 {[%emt 0:00:15]} a3 {[%emt 0:01:04]} 41. Bc5 {[%emt 0:00:40]} Rb3+ {[%emt 0:01:04]} 42. Kc4 {[%emt 0:00:24]} Rg3 {[%emt 0:00:28]} 43. Kb5 {[%emt 0:01:01]} Kf7 {[%emt 0:01:01]} 44. Ka4 {[%emt 0:01:01]} Ke6 {[%emt 0:00:29]} 45. Bxa3 {[%emt 0:00:48]} Bxa3 {[%emt 0:00:16]} 46. Rxa3 {[%emt 0:00:10]} Rxa3+ {[%emt 0:00:53]} 47. Kxa3 {[%emt 0:00:07]} Kf5 {[%emt 0:00:07]} 48. g3 {[%emt 0:00:21]} Ke4 {[%emt 0:00:14]} 49. Kb4 {[%emt 0:00:08]} Kf3 {[%emt 0:00:14]} 50. g4 {[%emt 0:00:51]} Kg3 {[%emt 0:00:20]} 51. Kc4 {[%emt 0:01:24]} g5 {[%emt 0:00:30]} 0-1

[Event "EYCC Girls U16 2021"]
[Site "Tornelo"]
[Date "2021.10.15"]
[Round "2.2"]
[White "Zvereva, Margarita"]
[Black "Mihelic, Vesna"]
[Result "1/2-1/2"]
[ECO "C54"]
[WhiteElo "2013"]
[BlackElo "1882"]
[Annotator "NA"]
[PlyCount "88"]
[EventDate "2021.10.15"]
[EventType "swiss"]
[EventCountry "NET"]
[SourceTitle "playchess.com"]
[Source "ChessBase"]
[SourceQuality "1"]
[TimeControl "5400+30"]

1. e4 {[%emt 0:00:30]} e5 {[%emt 0:00:40]} 2. Nf3 {[%emt 0:00:05]} Nc6 {[%emt 0:00:09]} 3. Bc4 {[%emt 0:00:05]} Bc5 {[%emt 0:00:09]} 4. d3 {[%emt 0:00:07]} Nf6 {[%emt 0:00:11]} 5. O-O {[%emt 0:00:07]} d6 {[%emt 0:00:40]} 6. c3 {[%emt 0:00:05]} Bb6 {[%emt 0:00:37]} 7. Nbd2 {[%emt 0:03:42]} O-O {[%emt 0:00:30]} 8. h3 {[%emt 0:00:19]} Ne7 {[%emt 0:00:41]} 9. Bb3 {[%emt 0:00:55]} Ng6 {[%emt 0:00:57]} 10. Nc4 {[%emt 0:00:56]} h6 {[%emt 0:03:35]} 11. Nxb6 {[%emt 0:01:41]} axb6 {[%emt 0:00:11]} 12. Re1 {[%emt 0:01:36]} Re8 {[%emt 0:01:28]} 13. Bc2 {[%emt 0:04:43]} d5 {[%emt 0:08:40]} 14. exd5 {[%emt 0:01:52]} Qxd5 {[%emt 0:03:24]} 15. Bb3 {[%emt 0:05:04]} Qd6 {[%emt 0:02:13]} 16. d4 {[%emt 0:02:41]} e4 {[%emt 0:01:03]} 17. Nd2 {[%emt 0:00:23]} Bf5 {[%emt 0:10:21]} 18. Nc4 {[%emt 0:02:29]} Qd7 {[%emt 0:01:19]} 19. Kh2 {[%emt 0:15:28]} b5 {[%emt 0:24:54]} 20. Ne3 {[%emt 0:00:47]} Qd6+ {[%emt 0:00:41]} 21. g3 {[%emt 0:01:29]} Bd7 $15 {[%emt 0:01:51]} 22. Ng2 {[%emt 0:02:42]} Nd5 {[%emt 0:03:04]} 23. Qc2 {[%emt 0:10:35]} Qe6 {[%emt 0:03:51]} 24. Bxd5 {[%emt 0:15:52]} Qxd5 {[%emt 0:00:32]} 25. Re3 {[%emt 0:00:49]} Ra6 {[%emt 0:08:47]} 26. b3 {[%emt 0:02:22]} Qh5 {[%emt 0:01:17]} 27. h4 {[%emt 0:03:04]} Qg4 {[%emt 0:00:52]} 28. Kg1 {[%emt 0:02:11]} Kh7 {[%emt 0:03:22]} 29. c4 {[%emt 0:01:30]} Qh3 {[%emt 0:02:37]} 30. Bb2 {[%emt 0:05:13]} Bg4 {[%emt 0:01:17]} 31. d5 {[%emt 0:03:30]} bxc4 {[%emt 0:02:12]} 32. bxc4 {[%emt 0:00:35]} f5 {[%emt 0:01:02]} 33. Ne1 {[%emt 0:02:33]} f4 {[%emt 0:02:34]} 34. Rxe4 {[%emt 0:09:36]} fxg3 {[%emt 0:01:17]} 35. fxg3 {[%emt 0:00:43]} Qxg3+ {[%emt 0:00:26]} 36. Ng2 {[%emt 0:00:14]} Rxe4 {[%emt 0:01:57]} 37. Qxe4 {[%emt 0:00:05]} Bf3 {[%emt 0:00:18]} 38. Qc2 {[%emt 0:00:10]} h5 {[%emt 0:06:04]} 39. a3 {[%emt 0:01:50]} Kg8 {[%emt 0:02:47]} 40. Qf2 {[%emt 0:00:23]} Qg4 {[%emt 0:00:46]} 41. Kh2 {[%emt 0:01:09]} Ra8 {[%emt 0:00:54]} 42. Rg1 {[%emt 0:00:19]} Rf8 {[%emt 0:00:11]} 43. Qd4 {[%emt 0:00:30]} Qxd4 {[%emt 0:00:57]} 44. Bxd4 {[%emt 0:00:05]} Kh7 {[%emt 0:00:22]} 1/2-1/2